[Event "EYCC O18-ch 2024"]
[Site "Prague"]
[Date "2024.08.24"]
[Round "3.2"]
[White "Farokhi, Keyvan"]
[Black "Xhembulla, Aleksander"]
[Result "1-0"]
[ECO "D37"]
[WhiteElo "2307"]
[BlackElo "2201"]
[Annotator "RC"]
[PlyCount "77"]
[EventDate "2024.08.19"]
[EventType "swiss"]
[EventCountry "CZE"]
[SourceTitle "playchess.com"]
[Source "ChessBase"]
[SourceQuality "1"]
[TimeControl "5400+30"]

1. d4 {[%emt 0:00:06]} Nf6 {[%emt 0:00:07]} 2. c4 {[%emt 0:00:05]} e6 {[%emt 0:00:10]} 3. Nc3 {[%emt 0:00:21]} d5 {[%emt 0:00:06]} 4. Nf3 {[%emt 0:00:53]} Nbd7 {[%emt 0:00:53]} 5. e3 {[%emt 0:01:45]} a6 {[%emt 0:06:41]} 6. b3 {[%emt 0:01:04]} b6 {[%emt 0:02:58]} 7. Bb2 {[%emt 0:04:06]} Bb7 {[%emt 0:00:18]} 8. Bd3 {[%emt 0:08:28]} Bd6 {[%emt 0:05:59]} 9. Qc2 {[%emt 0:02:52]} O-O {[%emt 0:02:39]} 10. Rd1 {[%emt 0:06:56]} Qe7 {[%emt 0:07:58]} 11. e4 {[%emt 0:15:38]} dxc4 {[%emt 0:03:51]} 12. Bxc4 {[%emt 0:02:41]} e5 {[%emt 0:00:15]} 13. O-O {[%emt 0:08:51]} Rad8 {[%emt 0:17:11]} 14. Rfe1 {[%emt 0:01:47]} exd4 {[%emt 0:13:55]} 15. Nxd4 {[%emt 0:00:12]} Qe5 {[%emt 0:00:20]} 16. Nf3 {[%emt 0:02:49]} Qh5 {[%emt 0:00:09]} 17. Nd5 {[%emt 0:03:12]} Bxd5 {[%emt 0:08:45]} 18. exd5 {[%emt 0:01:52]} a5 {[%emt 0:01:30]} 19. h3 {[%emt 0:02:50]} Rfe8 {[%emt 0:00:12]} 20. Nd4 {[%emt 0:02:44]} Bb4 {[%emt 0:06:00]} 21. Rxe8+ {[%emt 0:02:11]} Rxe8 {[%emt 0:00:05]} 22. Nb5 {[%emt 0:03:58]} Rc8 {[%emt 0:06:26]} 23. d6 {[%emt 0:05:15]} cxd6 {[%emt 0:00:17]} 24. Nxd6 {[%emt 0:00:26]} Bxd6 {[%emt 0:00:18]} 25. Rxd6 {[%emt 0:00:05]} Qc5 {[%emt 0:01:20]} 26. Rd2 {[%emt 0:02:35]} Ne5 {[%emt 0:02:29]} 27. Bd4 {[%emt 0:03:05]} Qc7 {[%emt 0:02:36]} 28. Bxb6 {[%emt 0:06:01]} Qxb6 {[%emt 0:00:18]} 29. Bxf7+ {[%emt 0:00:04]} Kxf7 {[%emt 0:00:08]} 30. Qxc8 {[%emt 0:00:06]} Qe6 {[%emt 0:03:45]} 31. Qc7+ {[%emt 0:01:40]} Kg6 {[%emt 0:00:32]} 32. Qxa5 {[%emt 0:01:20]} Qf5 {[%emt 0:00:03]} 33. Qb4 {[%emt 0:01:57]} Nd3 {[%emt 0:02:58]} 34. Qc3 {[%emt 0:01:53]} Nf4 {[%emt 0:00:12]} 35. Qc2 {[%emt 0:01:58]} Ne4 {[%emt 0:02:38]} 36. Rd4 {[%emt 0:00:23]} Nc3 {[%emt 0:01:55]} 37. Rd6+ {[%emt 0:00:43]} Kg5 {[%emt 0:00:05]} 38. h4+ {[%emt 0:00:12]} Kg4 {[%emt 0:00:03]} 39. f3+ {[%emt 0:00:07]} 1-0

[Event "EYCC O18-ch 2024"]
[Site "Prague"]
[Date "2024.08.24"]
[Round "3.3"]
[White "Malek, Jan"]
[Black "Chyzy, Jakub"]
[Result "1/2-1/2"]
[ECO "D37"]
[WhiteElo "2482"]
[BlackElo "2368"]
[Annotator "TA"]
[PlyCount "126"]
[EventDate "2024.08.19"]
[EventType "swiss"]
[EventCountry "CZE"]
[SourceTitle "playchess.com"]
[Source "ChessBase"]
[SourceQuality "1"]
[TimeControl "5400+30"]

{[%evp 12,126,21,0,10,7,14,19,25,-5,1,1,39,30,35,25,29,44,29,26,22,35,30,11,10,0,0,-8,23,25,26,25,22,19,39,14,19,14,7,16,17,10,26,27,30,30,47,53,52,39,70,61,61,61,61,61,61,40,122,122,122,122,122,122,122,114,122,122,122,122,122,122,122,122,122,107,107,107,107,107,107,107,107,107,107,101,107,107,107,107,107,94,94,85,104,104,155,155,155,104,104,104,104,104,130,130,130,102,102,102,102,0,102,96,96,96,96]} 1. Nf3 {[%emt 0:00:02]} d5 {[%emt 0:00:40]} 2. d4 {[%emt 0:00:07]} Nf6 {[%emt 0:00:13]} 3. c4 {[%emt 0:00:06]} e6 {[%emt 0:00:11]} 4. Nc3 {[%emt 0:00:07]} Nbd7 {[%emt 0:00:13]} 5. g3 {[%emt 0:00:37]} dxc4 {[%emt 0:03:43]} 6. Bg2 {[%emt 0:00:37] D37: Queen's Gambit Declined: 5 Bf4.} Bb4 {[%emt 0:03:20]} 7. Qc2 {[%emt 0:07:26]} O-O {[%emt 0:05:59]} 8. O-O {[%emt 0:00:16]} c6 {[%emt 0:07:39]} 9. Rd1 {[%emt 0:05:15]} Qe7 {[%emt 0:00:27]} 10. a4 {[%emt 0:05:43]} a5 {[%emt 0:05:27]} 11. Na2 {[%emt 0:11:15] 11.Na2 has lost popularity.} e5 {[%emt 0:11:39]} 12. Nxb4 {[%emt 0:05:44]} ({Of course not} 12. Qxc4 e4 13. Ne5 Bd6 $11) (12. Nxe5 {seems wilder.} Nxe5 13. Nxb4 axb4 14. dxe5 Qxe5 15. Qxc4 Be6 16. Qxb4 Qxe2 17. Re1) 12... axb4 {[%emt 0:01:25]} 13. dxe5 $146 {[%emt 0:11:58]} ({Predecessor:} 13. Qxc4 e4 14. Ne5 Nb6 15. Qc2 Bf5 16. Bg5 Qe6 17. Qc5 Nfd5 18. a5 Nc8 19. a6 bxa6 {½-½ Mitter,G (2181)-Heimberger,R (2268) AUT-chT2M 0506 2005 (1.4)}) 13... Nxe5 {[%emt 0:01:02]} 14. Nxe5 {[%emt 0:06:14]} Qxe5 {[%emt 0:00:07]} 15. Qxc4 {[%emt 0:00:04]} Be6 {[%emt 0:00:42]} 16. Qxb4 {[%emt 0:00:05]} Qxe2 {[%emt 0:00:14]} 17. Bg5 {[%emt 0:00:16]} Nd5 {[%emt 0:01:12]} 18. Qd4 {[%emt 0:14:50]} h6 {[%emt 0:19:17]} 19. Bd2 {[%emt 0:04:04]} Qg4 {[%emt 0:02:40]} (19... Rfd8 {looks sharper.} 20. Bc3 Nxc3 21. Qxd8+ Rxd8 22. Rxd8+ Kh7) 20. Qxg4 {[%emt 0:06:07]} Bxg4 {[%emt 0:00:05]} 21. Re1 {[%emt 0:00:09]} Rfe8 {[%emt 0:00:44]} 22. a5 {[%emt 0:00:07]} Be2 {[%emt 0:05:10]} 23. Ra3 {[%emt 0:02:25]} Ba6 {[%emt 0:03:38]} 24. Bf3 {[%emt 0:01:14]} Rxe1+ {[%emt 0:03:21]} 25. Bxe1 {[%emt 0:00:01]} Re8 {[%emt 0:01:47]} 26. Bd2 {[%emt 0:00:02]} Kf8 {[%emt 0:00:44]} 27. h4 {[%emt 0:02:21]} Ke7 {[%emt 0:00:49]} 28. Ra4 {[%emt 0:00:05]} f5 {[%emt 0:08:16]} 29. Bxd5 {[%emt 0:06:30]} cxd5 {[%emt 0:00:06]} 30. h5 {[%emt 0:00:05]} Rc8 {[%emt 0:14:06]} 31. Bc3 {[%emt 0:00:22]} Rc4 {[%emt 0:00:09]} 32. Rxc4 {[%emt 0:02:16]} Bxc4 {[%emt 0:00:05]} 33. f3 {[%emt 0:02:30]} Kf7 {[%emt 0:00:27]} 34. Kf2 {[%emt 0:00:06]} g6 {[%emt 0:00:08]} (34... f4 $14) 35. hxg6+ $16 {[%emt 0:00:16]} Kxg6 {[%emt 0:00:03]} 36. Ke3 {[%emt 0:00:06]} Kf7 {[%emt 0:00:33]} 37. Be5 $1 {[%emt 0:00:56]} Ke6 {[%emt 0:00:19] [#]} 38. Kd4 $1 {[%emt 0:00:02]} h5 {[%emt 0:00:26]} 39. b4 {[%emt 0:00:15]} Be2 {[%emt 0:01:01]} 40. f4 {[%emt 0:00:44]} Kd7 {[%emt 0:00:10]} 41. Kc5 {[%emt 0:01:13]} ({Resist} 41. Kxd5 Bf3+ 42. Kd4 Bg2) 41... d4 {[%emt 0:00:31]} 42. Bxd4 {[%emt 0:00:09]} ({Don't play} 42. Kxd4 $6 Kc6 $11) 42... Bf3 {[%emt 0:01:10]} 43. Kb6 {[%emt 0:00:27]} Kc8 {[%emt 0:00:05]} 44. Be5 {[%emt 0:00:51]} Be2 {[%emt 0:00:25]} 45. Bd6 {[%emt 0:02:46]} Bf1 {[%emt 0:00:07]} 46. Kc5 {[%emt 0:01:50]} Kd7 {[%emt 0:00:03]} 47. Kd5 {[%emt 0:00:06]} Bh3 {[%emt 0:02:44]} 48. Bc5 {[%emt 0:00:24]} Bg4 {[%emt 0:00:27]} 49. Bd4 {[%emt 0:00:35]} Bh3 {[%emt 0:00:23]} 50. b5 {[%emt 0:00:06]} Bf1 {[%emt 0:00:30]} 51. Ke5 {[%emt 0:00:06]} Bd3 {[%emt 0:00:31]} 52. Bc5 {[%emt 0:00:06]} Kc7 {[%emt 0:00:41]} 53. Ke6 {[%emt 0:00:39]} Be4 {[%emt 0:00:23]} (53... Kd8 $142) 54. Bd6+ $16 {[%emt 0:00:34]} Kc8 {[%emt 0:00:12] [#]} 55. Be5 {[%emt 0:00:15]} (55. a6 $142 $1) 55... Bd3 $16 {[%emt 0:00:37]} 56. Bc3 {[%emt 0:01:32]} Kc7 {[%emt 0:00:35]} 57. Bd4 {[%emt 0:00:06]} Be4 {[%emt 0:00:20]} 58. Be5+ {[%emt 0:00:06]} Kc8 {[%emt 0:00:06]} 59. Kf6 {[%emt 0:00:16]} Bd3 {[%emt 0:00:19]} 60. Kg6 {[%emt 0:00:08]} Kd7 {[%emt 0:00:04]} 61. Kf6 {[%emt 0:03:18]} ({White should try} 61. b6 $16) 61... Ke8 {[%emt 0:01:10]} (61... Kc8 $1 $11 {keeps the balance.}) 62. Ke6 {[%emt 0:00:14]} Bxb5 {[%emt 0:00:09]} 63. Kxf5 {[%emt 0:00:08]} Kf7 {[%emt 0:00:05]} 1/2-1/2

[Event "EYCC O18-ch 2024"]
[Site "Prague"]
[Date "2024.08.24"]
[Round "3.3"]
[White "Vergara Anton, Diego"]
[Black "Ribeiro, Gustavo"]
[Result "1/2-1/2"]
[ECO "A46"]
[WhiteElo "2416"]
[BlackElo "2183"]
[Annotator "RC"]
[PlyCount "77"]
[EventDate "2024.08.19"]
[EventType "swiss"]
[EventCountry "CZE"]
[SourceTitle "playchess.com"]
[Source "ChessBase"]
[SourceQuality "1"]
[TimeControl "5400+30"]

1. d4 {[%emt 0:00:06]} Nf6 {[%emt 0:00:15]} 2. Nf3 {[%emt 0:01:13]} e6 {[%emt 0:00:37]} 3. e3 {[%emt 0:00:22]} c5 {[%emt 0:00:19]} 4. c4 {[%emt 0:01:03]} cxd4 {[%emt 0:00:41]} 5. exd4 {[%emt 0:01:25]} d5 {[%emt 0:00:23]} 6. Nc3 {[%emt 0:00:35]} Nc6 {[%emt 0:00:35]} 7. a3 {[%emt 0:04:32]} Be7 {[%emt 0:01:17]} 8. c5 {[%emt 0:06:06]} Ne4 {[%emt 0:00:39]} 9. Bb5 {[%emt 0:02:52]} Bd7 {[%emt 0:05:50]} 10. O-O {[%emt 0:13:23]} O-O {[%emt 0:02:59]} 11. Qc2 {[%emt 0:04:50]} Nxc3 {[%emt 0:01:46]} 12. Qxc3 {[%emt 0:01:35]} Bf6 {[%emt 0:01:03]} 13. Bxc6 {[%emt 0:01:46]} Bxc6 {[%emt 0:00:15]} 14. Bf4 {[%emt 0:01:31]} a5 {[%emt 0:07:27]} 15. Rfe1 {[%emt 0:03:35]} a4 {[%emt 0:02:11]} 16. Rac1 {[%emt 0:04:47]} Qa5 {[%emt 0:01:24]} 17. Qe3 {[%emt 0:02:30]} Qb5 {[%emt 0:00:36]} 18. Rc2 {[%emt 0:03:36]} b6 {[%emt 0:03:11]} 19. Bg5 {[%emt 0:02:38]} Bxg5 {[%emt 0:00:48]} 20. Nxg5 {[%emt 0:00:46]} h6 {[%emt 0:00:39]} 21. Nf3 {[%emt 0:00:11]} Rfc8 {[%emt 0:01:13]} 22. Ne5 {[%emt 0:05:53]} Be8 {[%emt 0:02:54]} 23. c6 {[%emt 0:01:58]} f6 {[%emt 0:03:16]} 24. Nd3 {[%emt 0:03:50]} Bg6 {[%emt 0:01:14]} 25. Rd1 {[%emt 0:05:17]} Bxd3 {[%emt 0:01:50]} 26. Rxd3 {[%emt 0:04:43]} Rxc6 {[%emt 0:00:55]} 27. Rxc6 {[%emt 0:00:52]} Qxc6 {[%emt 0:00:07]} 28. Rc3 {[%emt 0:00:08]} Qe8 {[%emt 0:07:37]} 29. Qc1 {[%emt 0:04:02]} e5 {[%emt 0:04:27]} 30. dxe5 {[%emt 0:01:19]} Qxe5 {[%emt 0:02:55]} 31. h3 {[%emt 0:03:09]} d4 {[%emt 0:02:35]} 32. Rd3 {[%emt 0:02:52]} Qc5 {[%emt 0:00:15]} 33. Qd1 {[%emt 0:00:50]} Rd8 {[%emt 0:00:24]} 34. Qxa4 {[%emt 0:01:18]} Qc1+ {[%emt 0:00:30]} 35. Kh2 {[%emt 0:00:36]} Qxb2 {[%emt 0:00:48]} 36. Qc4+ {[%emt 0:01:11]} Kh8 {[%emt 0:00:46]} 37. Qc7 {[%emt 0:00:26]} Rd5 {[%emt 0:02:49]} 38. Qc4 {[%emt 0:01:17]} Qb5 {[%emt 0:00:52]} 39. Qxb5 {[%emt 0:00:45]} 1/2-1/2

[Event "EYCC O18-ch 2024"]
[Site "Prague"]
[Date "2024.08.24"]
[Round "3.4"]
[White "Macias Pino, Diego"]
[Black "Gasparyan, Erik R."]
[Result "1-0"]
[ECO "C97"]
[WhiteElo "2477"]
[BlackElo "2350"]
[Annotator "TA"]
[PlyCount "85"]
[EventDate "2024.08.19"]
[EventType "swiss"]
[EventCountry "CZE"]
[SourceTitle "playchess.com"]
[Source "ChessBase"]
[SourceQuality "1"]
[TimeControl "5400+30"]

{[%evp 25,85,26,35,27,64,67,71,30,70,61,131,125,131,124,123,131,135,126,138,120,132,132,134,127,127,103,140,126,122,116,158,157,174,151,269,257,280,256,321,226,227,227,264,246,254,248,264,237,263,264,255,245,438,247,278,237,527,527,534,533,868,865]} 1. e4 {[%emt 0:00:03]} e5 {[%emt 0:00:17]} 2. Nf3 {[%emt 0:00:08]} Nc6 {[%emt 0:00:15]} 3. Bb5 {[%emt 0:00:04]} a6 {[%emt 0:01:07]} 4. Ba4 {[%emt 0:00:29]} Nf6 {[%emt 0:02:32]} 5. O-O {[%emt 0:00:11]} Be7 {[%emt 0:04:54]} 6. Re1 {[%emt 0:00:30]} b5 {[%emt 0:01:10]} 7. Bb3 {[%emt 0:00:01]} d6 {[%emt 0:01:53]} 8. c3 {[%emt 0:00:16]} O-O {[%emt 0:01:26]} 9. h3 {[%emt 0:00:03]} Na5 {[%emt 0:01:22]} 10. Bc2 c5 {[%emt 0:00:05]} 11. d4 {[%emt 0:01:22]} Qc7 {[%emt 0:16:39]} 12. Nbd2 {[%emt 0:01:13]} Be6 {[%emt 0:11:41]} 13. d5 {[%emt 0:00:46]} Bd7 {[%emt 0:00:19]} 14. b3 {[%emt 0:08:05][%cal Bb2b3,Bb3b4][%mdl 32]} c4 {[%emt 0:05:11]} 15. b4 {[%emt 0:01:14]} Nb7 {[%emt 0:00:03]} 16. Nf1 {[%emt 0:02:23] White is better.} Ne8 {[%emt 0:04:14]} 17. a4 {[%emt 0:09:58]} g6 {[%emt 0:03:10] [#]} (17... a5 $14) 18. axb5 $1 $16 {[%emt 0:03:43]} Bxb5 {[%emt 0:00:08]} 19. Bh6 {[%emt 0:01:04]} Ng7 {[%emt 0:00:30]} 20. Ne3 {[%emt 0:00:40]} f6 {[%emt 0:13:34]} 21. Ba4 {[%emt 0:02:34] White has more active pieces. The black rooks are passive.} Rfc8 {[%emt 0:02:32]} 22. Re2 {[%emt 0:06:28]} Nd8 {[%emt 0:00:46]} 23. Bxg7 {[%emt 0:03:32]} (23. Rea2 Rab8 24. Bxg7 Kxg7) 23... Kxg7 {[%emt 0:00:06]} 24. Rea2 {[%emt 0:00:09] Black must now prevent Bxb5.} Rab8 {[%emt 0:02:55]} 25. Qc1 {[%emt 0:02:48]} Rb7 {[%emt 0:02:43]} 26. Nd2 {[%emt 0:00:48]} Nf7 {[%emt 0:00:54]} 27. Bd1 {[%emt 0:00:36][%cal Ba4d1,Bd1g4,Bg4e2][%mdl 32]} Qd8 {[%emt 0:04:44]} 28. Bg4 {[%emt 0:01:15]} Rcc7 {[%emt 0:00:09]} 29. Qf1 {[%emt 0:01:21][%cal Og4e2]} Nh6 {[%emt 0:02:53] [#]} (29... Rb8 $16 30. Be2 (30. Nexc4 f5 $16) (30. Ndxc4 Ng5 $14) 30... Qc8 31. Bxc4 (31. Ndxc4 f5 $18) 31... Rxc4 32. Nexc4 (32. Ndxc4 f5 $16) 32... f5) 30. Be2 $1 $18 {[%emt 0:00:14]} (30. Ndxc4 Nxg4 31. hxg4 Qc8 32. Rxa6 Bxc4 33. Nxc4 Rxc4 $15) 30... f5 {[%emt 0:00:04]} 31. Nexc4 {[%emt 0:00:41][%cal Be3c4,Bc4a5,Ba5c6][%mdl 32]} ({Don't do} 31. Ndxc4 f4 $18) ({Don't take} 31. Bxc4 $6 Bg5 $16) 31... Bg5 {[%emt 0:06:05]} 32. Na5 {[%emt 0:00:40] A dynamic duo of knights.} Rb6 {[%emt 0:00:06]} 33. Bxb5 {[%emt 0:01:56]} axb5 {[%emt 0:00:10]} 34. Nc6 {[%emt 0:00:10]} Qf6 {[%emt 0:00:38]} 35. Qd3 {[%emt 0:01:58]} Bxd2 {[%emt 0:04:44]} 36. Qxd2 {[%emt 0:00:55] Hoping for exf5.} fxe4 {[%emt 0:01:30]} 37. Qe3 {[%emt 0:00:23]} Rbb7 {[%emt 0:00:02]} 38. Ra8 {[%emt 0:00:49]} Nf7 {[%emt 0:01:16] Inhibits Nd8.} (38... Rd7 {might work better.} 39. Qxe4 Nf7) 39. Qxe4 {[%emt 0:00:40]} (39. Na5 $142) 39... Qf5 {[%emt 0:01:21]} 40. Qe3 {[%emt 0:01:32] And now Na5 would win.} Qg5 $2 {[%emt 0:00:56]} (40... Qf4 {was necessary.} 41. Qxf4 exf4) 41. Qxg5 {[%emt 0:00:42] White is clearly winning.} Nxg5 {[%emt 0:00:04]} 42. Nd8 {[%emt 0:00:08]} Rb6 {[%emt 0:00:08]} 43. h4 {[%emt 0:00:05] Weighted Error Value: White=0.14 (very precise) /Black=0.48.  Mistake:       	White=1     	Black=4      Inaccurate:     	White=1     	Black=5      OK:         	White=13    	Black=9      Best:        	White=2     	Black=2      Strong:       	White=1     	---} 1-0

[Event "EYCC O18-ch 2024"]
[Site "Prague"]
[Date "2024.08.24"]
[Round "3.4"]
[White "Bakija, Alan"]
[Black "Davtyan, Arsen"]
[Result "1/2-1/2"]
[ECO "A06"]
[WhiteElo "2171"]
[BlackElo "2402"]
[Annotator "RC"]
[PlyCount "62"]
[EventDate "2024.08.19"]
[EventType "swiss"]
[EventCountry "CZE"]
[SourceTitle "playchess.com"]
[Source "ChessBase"]
[SourceQuality "1"]
[TimeControl "5400+30"]

1. Nf3 {[%emt 0:00:03]} d5 {[%emt 0:00:04]} 2. g3 {[%emt 0:00:04]} g6 {[%emt 0:00:04]} 3. Bg2 {[%emt 0:00:06]} Bg7 {[%emt 0:00:05]} 4. d4 {[%emt 0:00:05]} c6 {[%emt 0:00:09]} 5. c4 {[%emt 0:00:54]} dxc4 {[%emt 0:00:31]} 6. Na3 {[%emt 0:01:09]} b5 {[%emt 0:05:37]} 7. Nxb5 {[%emt 0:02:23]} cxb5 {[%emt 0:01:14]} 8. Ng1 {[%emt 0:16:22]} Bd7 {[%emt 0:44:34]} 9. Bxa8 {[%emt 0:00:50]} Nc6 {[%emt 0:00:03]} 10. Bxc6 {[%emt 0:00:46]} Bxc6 {[%emt 0:00:04]} 11. Nf3 {[%emt 0:01:08]} Nf6 {[%emt 0:01:22]} 12. Bg5 {[%emt 0:15:56]} Ne4 {[%emt 0:04:05]} 13. Be3 {[%emt 0:05:30]} O-O {[%emt 0:03:27]} 14. O-O {[%emt 0:03:17]} Qd5 {[%emt 0:00:14]} 15. h4 {[%emt 0:04:33]} a5 {[%emt 0:06:14]} 16. a3 {[%emt 0:01:23]} Qe6 {[%emt 0:16:45]} 17. Kh2 {[%emt 0:11:30]} h6 {[%emt 0:00:20]} 18. Rg1 {[%emt 0:04:33]} Bd5 {[%emt 0:01:46]} 19. Qe1 {[%emt 0:00:36]} Ra8 {[%emt 0:00:11]} 20. Rd1 {[%emt 0:00:30]} Kh7 {[%emt 0:01:42]} 21. Bf4 {[%emt 0:08:17]} b4 {[%emt 0:01:10]} 22. Nd2 {[%emt 0:04:20]} Nf6 {[%emt 0:03:52]} 23. f3 {[%emt 0:00:04]} c3 {[%emt 0:02:08]} 24. bxc3 {[%emt 0:00:41]} bxc3 {[%emt 0:00:00]} 25. Nf1 {[%emt 0:06:58]} Bb3 {[%emt 0:00:48]} 26. Rc1 {[%emt 0:03:23]} Nd5 {[%emt 0:00:08]} 27. Be5 {[%emt 0:04:04]} f6 {[%emt 0:00:20]} 28. e4 {[%emt 0:00:25]} fxe5 {[%emt 0:02:48]} 29. exd5 {[%emt 0:00:04]} Qxd5 {[%emt 0:01:58]} 30. Rxc3 {[%emt 0:01:39]} exd4 {[%emt 0:00:11]} 31. Rc7 {[%emt 0:00:09]} Bf6 {[%emt 0:02:08]} 1/2-1/2

[Event "EYCC O18-ch 2024"]
[Site "Prague"]
[Date "2024.08.24"]
[Round "3.5"]
[White "Palczert, Matyas"]
[Black "Bermudez Ureba, Juan Diego"]
[Result "0-1"]
[ECO "B51"]
[WhiteElo "2341"]
[BlackElo "2183"]
[Annotator "RC"]
[PlyCount "86"]
[EventDate "2024.08.19"]
[EventType "swiss"]
[EventCountry "CZE"]
[SourceTitle "playchess.com"]
[Source "ChessBase"]
[SourceQuality "1"]
[TimeControl "5400+30"]

1. e4 {[%emt 0:00:04]} c5 {[%emt 0:00:09]} 2. Nf3 {[%emt 0:00:06]} d6 {[%emt 0:00:04]} 3. Bb5+ {[%emt 0:00:43]} Nd7 {[%emt 0:00:09]} 4. c4 {[%emt 0:00:12]} e5 {[%emt 0:03:34]} 5. Nc3 {[%emt 0:02:00]} g6 {[%emt 0:01:59]} 6. d3 {[%emt 0:01:59]} Bg7 {[%emt 0:01:23]} 7. Bg5 {[%emt 0:08:20]} f6 {[%emt 0:00:26]} 8. Be3 {[%emt 0:00:39]} Ne7 {[%emt 0:00:20]} 9. h4 {[%emt 0:04:33]} h6 {[%emt 0:07:38]} 10. Qd2 {[%emt 0:03:59]} Kf7 {[%emt 0:04:42]} 11. Ba4 {[%emt 0:04:07]} f5 {[%emt 0:05:03]} 12. g3 {[%emt 0:04:23]} Nf6 {[%emt 0:01:41]} 13. O-O-O {[%emt 0:05:57]} Ng4 {[%emt 0:09:43]} 14. Rdf1 {[%emt 0:04:35]} Rf8 {[%emt 0:07:43]} 15. Nh2 {[%emt 0:05:35]} Nxe3 {[%emt 0:00:15]} 16. fxe3 {[%emt 0:00:09]} Kg8 {[%emt 0:02:13]} 17. Bd1 {[%emt 0:02:00]} a6 {[%emt 0:21:33]} 18. Bf3 {[%emt 0:01:17]} Rb8 {[%emt 0:03:41]} 19. exf5 {[%emt 0:06:44]} Nxf5 {[%emt 0:04:27]} 20. Bd5+ {[%emt 0:03:16]} Kh8 {[%emt 0:00:58]} 21. Ne4 {[%emt 0:04:12]} b5 {[%emt 0:05:34]} 22. h5 {[%emt 0:03:17]} gxh5 {[%emt 0:07:23]} 23. g4 {[%emt 0:02:52]} Ne7 {[%emt 0:01:22]} 24. Rxf8+ {[%emt 0:02:36]} Bxf8 {[%emt 0:00:02]} 25. gxh5 {[%emt 0:01:29]} bxc4 {[%emt 0:03:53]} 26. dxc4 {[%emt 0:02:05]} Nxd5 {[%emt 0:00:06]} 27. cxd5 {[%emt 0:00:44]} Rb4 {[%emt 0:00:04]} 28. Qg2 {[%emt 0:04:36]} Bf5 {[%emt 0:00:04]} 29. Nc3 {[%emt 0:01:19]} Rh4 {[%emt 0:04:40]} 30. Rg1 {[%emt 0:05:44]} Bh7 {[%emt 0:00:02]} 31. Qe2 {[%emt 0:00:22]} Qe8 {[%emt 0:00:39]} 32. Qf2 {[%emt 0:02:48]} Be7 {[%emt 0:00:34]} 33. Nf3 {[%emt 0:05:11]} Rxh5 {[%emt 0:00:09]} 34. e4 {[%emt 0:00:42]} Qf7 {[%emt 0:00:52]} 35. Qe2 {[%emt 0:01:18]} Rh3 {[%emt 0:00:41]} 36. Rf1 {[%emt 0:02:03]} Qh5 {[%emt 0:00:02]} 37. Qg2 {[%emt 0:01:00]} Bg5+ {[%emt 0:01:11]} 38. Kb1 {[%emt 0:00:19]} Bf4 {[%emt 0:00:22]} 39. Ka1 {[%emt 0:00:15]} Rg3 {[%emt 0:00:16]} 40. Qf2 {[%emt 0:01:48]} Qh3 {[%emt 0:01:05]} 41. Ne2 {[%emt 0:00:41]} Be3 {[%emt 0:01:01]} 42. Qxg3 {[%emt 0:01:01]} Qxf1+ {[%emt 0:00:04]} 43. Qe1 {[%emt 0:00:07]} Qxf3 {[%emt 0:00:07]} 0-1